Cogmind - Beta 16.1 @@@ ROGUE MODE // 2026.03.14 @ 03:34:52 Player: RecursiveCharlatan Result: Destroyed by B-75 Beast with Magnetic Acceleration Cannon Performance ------------- Evolutions (3) 1500 Regions Visited (10) 2000 Robots Destroyed (147) 735 Value Destroyed (6175) 6175 Prototype IDs (17) 340 Alien Tech Used (0) 0 Bonus (3735) 3735 TOTAL SCORE: 14485 Bonus ------- High Alert Combat Kills 768 Follower Combat Kills 167 Entered Garrisons 800 Used RIF Installer 2000 Cogmind --------- Core Integrity 0/700 Matter 237/300 Energy 160/160 System Corruption 5% Temperature Cool (0) Movement Hovering (105) Ox1 Location -7/Garrison Parts ------- > --- POWER (1) -------- Light Nuclear Core > --- PROPULSION (4) --- Cooled Airjet Cooled Airjet Antigrav System > --- UTILITY (5) ------ High-capacity Storage Unit Core Analyzer Improved Light Armor Plating Relay Coupler [Swarmer] (24) Relay Coupler [Grunt] (9) > --- WEAPON (3) ------- Gauss Rifle Katana > --- INVENTORY (20) --- Medium Treads Improved Heat Sink Improved Heat Sink Weapon Cycler Relay Coupler [NC] (23) Relay Coupler [NC] (22) Relay Coupler [Hunter] (14) High-powered Tractor Beam Shock Rifle Heavy Ion Cannon Gauss Rifle Flak Gun Improved Proton Missile Launcher Remote Datajack Peak State ------------ > --- POWER ------------ Light Angular Momentum Engine Light Quantum Reactor > --- PROPULSION ------- Aluminum Leg Improved Carbon-fiber Leg Flexi-carbon Leg Myomer Leg > --- UTILITY ---------- Improved Heat Sink High-capacity Storage Unit Core Analyzer Medium Reactive Plating Relay Coupler [Swarmer] > --- WEAPON ----------- Cooled Pulse Rifle Powered Cannon > --- INVENTORY -------- Medium Treads Cooled Airjet Cooled Airjet Antigrav System Improved Heat Sink Weapon Cycler Improved Light Armor Plating Relay Coupler [NC] Relay Coupler [NC] Relay Coupler [Swarmer] High-powered Tractor Beam Shock Rifle Heavy Ion Cannon Gauss Rifle Flak Gun Improved Proton Missile Launcher Remote Datajack Katana [Rating: 71] Favorites ----------- Power Ion Engine Engine Ion Engine Power Core Light Nuclear Core Reactor Light Quantum Reactor Propulsion Light Treads Treads Light Treads Leg Flexi-carbon Leg Wheel Armored Wheel Hover Unit Aerolev Unit Utility High-capacity Storage Unit Device Advanced Heat Sink Storage High-capacity Storage Unit Processor Improved Signal Interpreter Hackware Relay Coupler [Grunt] Protection Hardened Medium Armor Plating Weapon Gauss Cannon Energy Gun Gatling Laser Energy Cannon Plasma Cannon Ballistic Gun Light Assault Rifle Ballistic Cannon Gauss Cannon Launcher Proton Missile Launcher Special Weapon Remote Datajack Slashing Weapon Katana Build | -11 -10 -10 -8 -8 -8 -8 -7 -7 -7 -7 ------- Run | Yrd Mat Sub Mat Gar Mat Gar Fac Gar Fac Gar Slots Evolved 6 | . . . 4 . . . 2 . . . Power . | . . . . . . . . . . . Propulsion 2 | . . . 1 . . . 1 . . . Utility 3 | . . . 2 . . . 1 . . . Weapon 1 | . . . 1 . . . . . . . Parts Attached 103 | 6 5 7 24 8 . 7 6 19 10 11 Power 9 | 1 . . 1 1 . . 1 2 1 2 Engine 6 | 1 . . 1 1 . . . 2 . 1 Core 2 | . . . . . . . 1 . . 1 Reactor 1 | . . . . . . . . . 1 . Propulsion 31 | 2 . 2 8 . . 5 4 3 4 3 Treads 20 | 2 . . 6 . . 5 4 3 . . Leg 4 | . . . . . . . . . 4 . Wheel 3 | . . 2 1 . . . . . . . Hover 4 | . . . 1 . . . . . . 3 Flight . | . . . . . . . . . . . Utility 29 | 1 2 1 7 3 . 1 . 8 3 3 Device 7 | . . . 3 1 . . . 3 . . Storage 4 | 1 2 . 1 . . . . . . . Processor 2 | . . . . 1 . . . . 1 . Hackware 5 | . . . . . . . . 2 1 2 Protection 11 | . . 1 3 1 . 1 . 3 1 1 Artifact . | . . . . . . . . . . . Weapon 34 | 2 3 4 8 4 . 1 1 6 2 3 Energy Gun 4 | . . . 1 . . . . 1 2 . Energy Cannon 5 | . . . 3 1 . . . . . 1 Ballistic Gun 14 | 2 3 2 1 1 . 1 . 3 . 1 Ballistic Cannon 7 | . . 2 3 1 . . 1 . . . Launcher 1 | . . . . 1 . . . . . . Special Weapon 2 | . . . . . . . . 1 . 1 Impact Weapon . | . . . . . . . . . . . Slashing Weapon 1 | . . . . . . . . 1 . . Piercing Weapon . | . . . . . . . . . . . Special Melee Weapon . | . . . . . . . . . . . Unidentified Prototypes 4 | . . . 2 . . . . . 1 1 Parts Lost 50 | . . 6 3 6 . 2 1 18 5 9 Power 7 | . . 1 . . . . 1 2 1 2 Propulsion 16 | . . 2 3 1 . 1 . 5 1 3 Utility 13 | . . 1 . 1 . . . 7 2 2 Weapon 14 | . . 2 . 4 . 1 . 4 1 2 Highest Loss Streak 13 | . . 4 2 2 . 1 1 13 3 3 To Critical Strikes 2 | . . 1 . . . . . . . 1 Average Backups 15 | 2 8 11 15 18 19 18 18 18 16 18 Power 1 | . 1 1 . 1 2 2 1 . . . Propulsion 2 | 1 2 2 2 2 3 3 2 2 2 3 Utility 6 | . 1 2 5 7 10 9 9 7 6 7 Weapon 5 | . 3 6 7 6 4 4 5 6 6 6 Tool/Special . | . . . . . . . . . . . Unused Backups 24 | . . . 8 . . 2 2 3 . 9 Power 1 | . . . . . . . . 1 . . Propulsion 5 | . . . 2 . . 1 2 . . . Utility 8 | . . . . . . 1 . 2 . 5 Weapon 10 | . . . 6 . . . . . . 4 Tool/Special . | . . . . . . . . . . . Average Slot Usage (%) 90 | . 85 83 92 96 100 99 89 83 93 84 Engine 7 | . 14 8 7 9 9 9 6 5 1 2 Treads 18 | . 28 15 11 23 27 26 28 18 7 . Leg 2 | . . . . . . . . . 18 21 Wheel 3 | . . 9 12 . . . . . . . Device 6 | . . . 9 12 9 9 7 6 7 5 Storage 9 | . 14 14 9 9 9 9 7 7 7 7 Processor 3 | . . . . 5 9 9 7 . 6 7 Hackware 2 | . . . . . . . . 6 11 8 Protection 8 | . . 7 15 8 9 9 7 12 2 6 Energy Gun 2 | . . . 1 . . . . 5 12 7 Energy Cannon 3 | . . . 4 1 9 9 7 2 . 4 Ballistic Gun 10 | . 28 20 5 7 . 4 7 12 8 2 Ballistic Cannon 8 | . . 7 14 17 18 13 7 . . . Peak Build Rating 71 | 6 7 10 37 39 39 39 50 52 61 71 Average Rating 32 | 5 6 8 31 32 39 38 45 43 54 61 On Entrance 29 | . 6 7 10 35 39 39 37 47 42 61 Avg Prop Armor Cover (%) 5 | . . 9 3 . . . . . 8 . Naked Turns . | . . . . . . . . . . . Heaviest Build 98 | 12 27 32 77 79 79 79 75 76 88 98 Greatest Support 112 | 40 40 40 60 60 60 60 112 112 73 73 Greatest Overweight (x) 4 | . . 1 4 1 1 1 1 1 1 1 Average Overweight (x) . | . . . . 1 1 1 . . . . Largest Inventory Capacity 25 | 8 25 15 20 20 20 20 20 20 20 20 Average Capacity 18 | 7 13 15 17 20 20 20 20 20 20 20 Most Carried 20 | 4 11 13 20 20 20 20 20 20 20 20 Average Carried 16 | 2 8 11 16 19 20 19 19 19 17 19 Final Capacity 20 | 8 15 15 20 20 20 20 20 20 20 20 Final Carried 20 | 4 11 12 20 20 20 20 18 20 20 14 Class Distribution -------------------- 29% | Scavenger-Tank 23% | Mutant 20% | Tank 12% | Bothacker-Tank 12% | Bothacker-Gunner Dominant Class ---------------- Mutant | -10/Materials Mutant | -10/Subcaves Tank | -8/Materials Scavenger-Tank | -8/Garrison Scavenger-Tank | -8/Materials Scavenger-Tank | -8/Garrison Tank | -7/Factory Bothacker-Tank | -7/Garrison Bothacker-Gunner | -7/Factory Bothacker-Gunner | -7/Garrison Resources | -11 -10 -10 -8 -8 -8 -8 -7 -7 -7 -7 ----------- Run | Yrd Mat Sub Mat Gar Mat Gar Fac Gar Fac Gar Matter Collected 4043 | 280 126 202 1010 606 . 829 49 578 217 146 Remotely 705 | . . . 556 149 . . . . . . Salvage Created 4944 | 148 282 262 1017 633 . 870 119 623 366 624 Parts 293 | 13 27 21 50 47 . 51 2 30 18 34 Haulers Intercepted 2 | . . . 2 . . . . . . . Recyclers Shooed 2 | . . . 2 . . . . . . . Parts Field Recycled . | . . . . . . . . . . . Retrieved Matter . | . . . . . . . . . . . Parts Self-Destructed 8 | . . 8 . . . . . . . . Prevented . | . . . . . . . . . . . Parts Restored . | . . . . . . . . . . . Kills | -11 -10 -10 -8 -8 -8 -8 -7 -7 -7 -7 ------- Run | Yrd Mat Sub Mat Gar Mat Gar Fac Gar Fac Gar Combat Hostiles Destroyed 130 | . 9 9 20 22 . 27 3 16 8 16 Melee 1 | . . . . . . . . 1 . . Guns 49 | . 9 4 3 6 . . . 10 8 9 Cannons 75 | . . 5 17 13 . 27 3 5 . 5 AOE 4 | . . . . 3 . . . . . 1 Classes Destroyed 15 | 2 4 2 2 . . 5 . . . . Builder 4 | . 1 . 2 . . . . . 1 . Tunneler 4 | 3 1 . . . . . . . . . Hauler 2 | . . . 2 . . . . . . . Recycler 4 | 1 . . 3 . . . . . . . Watcher 3 | . 3 . . . . . . . . . Swarmer 31 | . 8 1 . 9 . 3 . 3 2 5 Grunt 52 | . 1 . 15 11 . 7 3 6 5 4 Brawler 3 | . . . . . . 3 . . . . Duelist 2 | . . . . . . 2 . . . . Protector 1 | . . . . . . 1 . . . . Sentry 20 | . . 1 3 2 . 8 . 5 . 1 Demolisher 1 | . . . . . . 1 . . . . Hunter 3 | . . . 2 . . . . . . 1 Programmer 10 | . . . . . . 2 . 2 1 5 Subdweller 7 | . . 7 . . . . . . . . Best Kill Streak 6 | 3 5 2 6 5 . 3 3 3 4 4 Combat Bots Only 5 | . 3 2 5 5 . 3 3 3 3 4 Max Kills in Single Turn 2 | 1 2 1 2 2 . 1 1 1 2 1 Gunslinging . | . . . . . . . . . . . Exploded 1 | . . . . 1 . . . . . 1 Melee 1 | . . . . . . . . 1 . . Uniques/NPCs Destroyed . | . . . . . . . . . . . Combat | -11 -10 -10 -8 -8 -8 -8 -7 -7 -7 -7 -------- Run | Yrd Mat Sub Mat Gar Mat Gar Fac Gar Fac Gar Hostile Shots Fired 1112 | . 50 55 119 98 . 90 18 473 59 150 Missed 332 | . 22 15 37 30 . 28 4 129 22 45 Hits 780 | . 28 40 82 68 . 62 14 344 37 105 Melee 9 | . . . . . . 4 . 5 . . Projectile 771 | . 28 40 82 68 . 58 14 339 37 105 AOE 2 | . . . . . . 2 . . . . Critical Strikes 19 | . . 1 3 4 . 3 1 6 . 1 Damage Taken 9850 | . 218 841 1307 861 . 995 225 3184 579 1640 Core 1129 | . 37 158 87 33 . 113 46 310 79 266 Absorbed by Shields . | . . . . . . . . . . . Redirected to Shielding 10 | . . . 10 . . . . . . . Ignored by Resistances 50 | . . . . . . . . . 30 20 Core Remaining (%) 59 | 100 . 22 . . . 57 . . . . Volleys Fired 387 | 10 39 50 60 43 . 64 7 49 24 41 Largest 3 | 2 2 2 3 3 . 3 3 3 3 3 Hottest 200 | 40 40 53 160 160 . 200 143 200 188 128 Shots Fired 915 | 20 78 88 159 102 . 184 21 124 55 84 Gun 441 | 20 78 59 47 33 . 17 7 74 46 60 Cannon 453 | . . 29 112 64 . 167 14 46 . 21 Launcher 5 | . . . . 5 . . . . . . Special 16 | . . . . . . . . 4 9 3 Kinetic 653 | 20 78 88 142 94 . 120 14 63 16 18 Thermal 241 | . . . 17 3 . 64 7 57 30 63 Explosive . | . . . . . . . . . . . Electromagnetic 5 | . . . . 5 . . . . . . Robot Hit Streak 27 | 7 7 16 9 8 . 8 10 13 8 27 Robot Miss Streak 7 | 1 4 4 7 6 . 4 2 7 5 4 Penetration Max 1 | . . . 1 1 . 1 . . 1 1 Secondary Targets 4 | . . . . . . . . 1 1 2 Max Gunslinging Chain 1 | . . . . . . . . 1 1 1 Shots Hit Robots 570 | 14 46 61 89 52 . 100 14 98 38 58 Core Hits 282 | 8 21 19 42 36 . 40 6 60 24 26 Critical Kills 2 | . 1 . . . . . . . . 1 Critical Parts Destroyed 1 | . . . . . . 1 . . . . Critical Strikes 31 | . 1 . 11 7 . 5 . 4 . 3 Burn 1 | . . . . . . . . . . 1 Meltdown 1 | . . . . . . . . . . 1 Destroy 2 | . 1 . . . . 1 . . . . Blast 26 | . . . 11 7 . 4 . 4 . . Sever 1 | . . . . . . . . . . 1 Melee Attacks 13 | . . . . . . . . 6 . 7 Impact . | . . . . . . . . . . . Slashing 13 | . . . . . . . . 6 . 7 Piercing . | . . . . . . . . . . . Sneak Attacks . | . . . . . . . . . . . Combat Hostiles . | . . . . . . . . . . . Follow-up Attacks . | . . . . . . . . . . . Damage Inflicted 13103 | 113 380 774 2417 1654 . 2769 372 2199 757 1668 Guns 4758 | 113 380 312 503 272 . 178 78 1241 752 929 Cannons 7736 | . . 462 1914 1013 . 2591 294 789 . 673 Explosions 369 | . . . . 369 . . . . . . Melee 235 | . . . . . . . . 169 . 66 Ramming 5 | . . . . . . . . . 5 . Kinetic 8268 | 113 380 774 2205 1261 . 1935 216 987 180 217 Thermal 4280 | . . . 212 78 . 834 156 1043 572 1385 Explosive . | . . . . . . . . . . . Electromagnetic 315 | . . . . 315 . . . . . . Impact . | . . . . . . . . . . . Slashing 235 | . . . . . . . . 169 . 66 Piercing . | . . . . . . . . . . . Highest Corruption 5 | . . . . . . . . 2 2 5 Average Corruption 2 | . . . . . . . . 1 2 3 Corruption Purged . | . . . . . . . . . . . Corruption Blocked . | . . . . . . . . . . . Effects 36 | . . . . . . . . 17 7 12 Message Errors 7 | . . . . . . . . 3 1 3 Matter Fused 9 | . . . . . . . . 4 3 2 Heat Flow Errors 5 | . . . . . . . . 3 . 2 Energy Discharges 6 | . . . . . . . . 2 2 2 Parts Rejected 1 | . . . . . . . . . . 1 Data Loss (minor) 2 | . . . . . . . . 2 . . Misfires 4 | . . . . . . . . 1 1 2 Alerts 2 | . . . . . . . . 2 . . Overload Shots . | . . . . . . . . . . . Overflow Damage 191 | . . . 32 35 . 84 . 8 . 32 Projectiles 191 | . . . 32 35 . 84 . 8 . 32 Explosions . | . . . . . . . . . . . Melee . | . . . . . . . . . . . Knockbacks 41 | . . 3 20 9 . 6 2 1 . . Impact . | . . . . . . . . . . . Kinetic 37 | . . 3 18 7 . 6 2 1 . . Secondary 4 | . . . 2 2 . . . . . . Self-Inflicted Damage 14 | . . . . 14 . . . . . . Shots 2 | . . . . 2 . . . . . . Rammed . | . . . . . . . . . . . Targets Rammed 1 | . . . . . . . . . 1 . Kicked 1 | . . . . . . . . . 1 . Crushed . | . . . . . . . . . . . Highest Temperature 411 | . . . 411 117 . 322 175 351 129 210 Average Temperature 87 | . . . 114 31 . 80 98 113 40 40 Received Heat Transfer 3030 | . . 168 720 405 . 333 144 831 108 321 Effects 4 | . . . 2 . . 1 . 1 . . Energy Bleed 2 | . . . . . . 1 . 1 . . Interference 2 | . . . 2 . . . . . . . Siege Activations . | . . . . . . . . . . . Martial Activations . | . . . . . . . . . . . Shielding Activations . | . . . . . . . . . . . Robots Disrupted . | . . . . . . . . . . . Combat Hostiles . | . . . . . . . . . . . Robots Corrupted . | . . . . . . . . . . . Combat Hostiles . | . . . . . . . . . . . Parts Fried . | . . . . . . . . . . . Impact Corruptions . | . . . . . . . . . . . Robots Melted 1 | . . . . . . . . . . 1 Combat Hostiles 1 | . . . . . . . . . . 1 Parts Melted 11 | . . 1 . . . 1 . 1 4 4 Heat Transferred 6995 | . . . 372 100 . 1511 300 2042 1208 1462 Parts Sabotaged . | . . . . . . . . . . . Parts Stolen . | . . . . . . . . . . . Parts Stripped . | . . . . . . . . . . . Power Chain Reactions 1 | . . . . 1 . . . . . . Alert | -11 -10 -10 -8 -8 -8 -8 -7 -7 -7 -7 ------- Run | Yrd Mat Sub Mat Gar Mat Gar Fac Gar Fac Gar Maximum Alert Level 3 | . . . 1 3 2 3 2 3 2 2 Low Security (%) 36 | 100 100 . 93 . . . . . 3 19 Level 1 16 | . . . 6 20 . 7 6 8 94 49 Level 2 28 | . . . . 44 100 28 93 73 2 30 Level 3 18 | . . . . 34 . 63 . 17 . . Level 4 . | . . . . . . . . . . . Level 5 . | . . . . . . . . . . . High Security . | . . . . . . . . . . . Max Security . | . . . . . . . . . . . Peak Influence 1034 | 10 107 . 317 934 455 1034 542 764 401 540 Initial 542 | . . . . 202 455 289 542 305 401 168 Average 376 | 1 19 . 59 640 451 730 462 569 276 340 Influence Increases 4041 | 20 273 40 680 792 . 765 84 659 276 452 Destroy 0b10 Robot/C 2540 | . 180 40 400 440 . 520 60 360 220 320 Destroy 0b10 Robot/NC 90 | 20 25 . 35 . . 5 . . 5 . Destroy Leader 300 | . 36 . 104 30 . 30 10 20 30 40 Allied During Kill 8 | . . . . . . . . 4 4 . Successful Hack 70 | . 17 . 27 14 . . 12 . . . Disable Machine 45 | . . . 30 . . 15 . . . . Anti-Garrison Action 500 | . . . . 200 . 100 . 150 . 50 Destroy Structure 128 | . . . 54 18 . 20 2 20 2 12 Partial Spotted 15 | . . . . . . . . 15 . . Lose Combat Pursuer 345 | . 15 . 30 90 . 75 . 90 15 30 Influence Decreases 3511 | 20 273 40 369 169 489 176 682 331 799 163 Entered New Map 1803 | . . . . 109 479 156 492 131 363 73 Time Decay 1188 | 20 273 40 339 . 10 . 180 . 326 . Lost Part 440 | . . . 30 60 . 20 10 180 50 90 Lost Ally 80 | . . . . . . . . 20 60 . Squads Dispatched 12 | . . . 4 . . . 1 . 7 . Investigation . | . . . . . . . . . . . Extermination 1 | . . . . . . . . . 1 . Reinforcement 2 | . . . 1 . . . 1 . . . Assault . | . . . . . . . . . . . Garrison 9 | . . . 3 . . . . . 6 . Intercept . | . . . . . . . . . . . Searches Triggered . | . . . . . . . . . . . Construction Impeded . | . . . . . . . . . . . Haulers Reinforced . | . . . . . . . . . . . Active Scanning Responses . | . . . . . . . . . . . Cargo Convoy Interrupts . | . . . . . . . . . . . Stealth | -11 -10 -10 -8 -8 -8 -8 -7 -7 -7 -7 --------- Run | Yrd Mat Sub Mat Gar Mat Gar Fac Gar Fac Gar Distress Signals 4 | . 1 . 2 . . 1 . . . . Communications Jammed . | . . . . . . . . . . . Distress Signals . | . . . . . . . . . . . Times Spotted 176 | . 17 9 27 28 . 30 3 23 17 22 Peak Tracking Total 9 | . 4 2 5 7 . 7 3 9 3 6 Tactical Retreats 13 | . 1 . 2 3 . 3 . 2 1 1 Traps | -11 -10 -10 -8 -8 -8 -8 -7 -7 -7 -7 ------- Run | Yrd Mat Sub Mat Gar Mat Gar Fac Gar Fac Gar Traps Triggered 26 | . . . . 8 . 10 . 3 1 4 Indirectly . | . . . . . . . . . . . Trap Hack Attempts . | . . . . . . . . . . . Triggered . | . . . . . . . . . . . Disarmed . | . . . . . . . . . . . Reprogrammed . | . . . . . . . . . . . Reused . | . . . . . . . . . . . Traps Extracted . | . . . . . . . . . . . Installed . | . . . . . . . . . . . Triggered . | . . . . . . . . . . . Machines | -11 -10 -10 -8 -8 -8 -8 -7 -7 -7 -7 ---------- Run | Yrd Mat Sub Mat Gar Mat Gar Fac Gar Fac Gar Machines Disabled 8 | . . 1 2 2 . 1 . 1 . 1 Max in Single Turn 1 | . . 1 1 1 . 1 . 1 . 1 Garrison Relay 4 | . . . . 2 . . . 1 . 1 Machines Repaired . | . . . . . . . . . . . Machines Dismantled . | . . . . . . . . . . . Machines Sabotaged . | . . . . . . . . . . . Overloaded Fab Kills . | . . . . . . . . . . . Hacking | -11 -10 -10 -8 -8 -8 -8 -7 -7 -7 -7 --------- Run | Yrd Mat Sub Mat Gar Mat Gar Fac Gar Fac Gar Machines Accessed 24 | . 7 1 7 1 1 3 2 1 1 . Terminals 19 | . 7 . 6 1 . 3 1 1 . . Fabricators . | . . . . . . . . . . . Repair Stations . | . . . . . . . . . . . Recycling Units . | . . . . . . . . . . . Scanalyzers . | . . . . . . . . . . . Garrison Access 4 | . . . 1 . 1 . 1 . 1 . Total Hacks 59 | . 21 1 17 3 1 7 6 2 1 . Successful 28 | . 10 1 9 1 1 . 4 1 1 . Failed 31 | . 11 . 8 2 . 7 2 1 . . Catastrophic 3 | . . . 1 1 . 1 . . . . Database Lockouts . | . . . . . . . . . . . Manual 34 | . 20 . 12 . . . 1 1 . . Terminals 54 | . 21 . 16 3 . 7 5 2 . . Fabricators . | . . . . . . . . . . . Repair Stations . | . . . . . . . . . . . Recycling Units . | . . . . . . . . . . . Scanalyzers . | . . . . . . . . . . . Garrison Access 4 | . . . 1 . 1 . 1 . 1 . Terminal Hacks 7 | . 1 1 1 1 . . 2 1 . . Part Schematic 1 | . . . . . . . 1 . . . Emergency Access Points 1 | . . . . . . . . 1 . . Hauler Manifests 1 | . . . 1 . . . . . . . Zone Layout 2 | . 1 . . . . . 1 . . . Garrison Registry 1 | . . . . 1 . . . . . . Proto ID Catalog 1 | . . 1 . . . . . . . . Fabricator Hacks . | . . . . . . . . . . . Repair Station Hacks . | . . . . . . . . . . . Recycling Unit Hacks . | . . . . . . . . . . . Scanalyzer . | . . . . . . . . . . . Garrison Access Hacks 4 | . . . 1 . 1 . 1 . 1 . Unlock Access 4 | . . . 1 . 1 . 1 . 1 . Unauthorized Hacks 17 | . 9 . 7 . . . 1 . . . Terminals 17 | . 9 . 7 . . . 1 . . . Botnet 4 | . 3 . 1 . . . . . . . Operators 2 | . 1 . 1 . . . . . . . Skim 11 | . 5 . 5 . . . 1 . . . Fabricators . | . . . . . . . . . . . Repair Stations . | . . . . . . . . . . . Recycling Units . | . . . . . . . . . . . Scanalyzers . | . . . . . . . . . . . Garrison Access . | . . . . . . . . . . . Data Cores Recovered . | . . . . . . . . . . . Used . | . . . . . . . . . . . Hacking Detections 17 | . 6 . 6 1 . 3 1 . . . Full Trace Events . | . . . . . . . . . . . Feedback Events . | . . . . . . . . . . . Feedback Blocked . | . . . . . . . . . . . Robot Schematics Acquired . | . . . . . . . . . . . Robots Built . | . . . . . . . . . . . Authchips . | . . . . . . . . . . . Time . | . . . . . . . . . . . Total Robot Build Rating . | . . . . . . . . . . . Part Schematics Acquired 1 | . . . . . . . 1 . . . Parts Built . | . . . . . . . . . . . Authchips . | . . . . . . . . . . . Time . | . . . . . . . . . . . Total Part Build Rating . | . . . . . . . . . . . Part Studies Acquired . | . . . . . . . . . . . Parts Repaired . | . . . . . . . . . . . Time . | . . . . . . . . . . . Parts Recycled . | . . . . . . . . . . . Recycled Matter . | . . . . . . . . . . . Retrieved Matter . | . . . . . . . . . . . Retrieved Components . | . . . . . . . . . . . Parts Scanalyzed . | . . . . . . . . . . . Part Schematics Acquired . | . . . . . . . . . . . Parts Damaged . | . . . . . . . . . . . Bothacking | -11 -10 -10 -8 -8 -8 -8 -7 -7 -7 -7 ------------ Run | Yrd Mat Sub Mat Gar Mat Gar Fac Gar Fac Gar Used RIF Installer 4 | . . . . 1 . 1 . 1 . 1 Hotswap 1 | . . . . . . 1 . . . . Watcher Feeds 1 | . . . . . . . . . . 1 Program Shield 1 | . . . . . . . . 1 . . Robots Hacked 9 | . . . . . . . . 2 4 3 Non-combat . | . . . . . . . . . . . Combat 9 | . . . . . . . . 2 4 3 Robot Hacks Applied 9 | . . . . . . . . 2 4 3 amplify_resonance 5 | . . . . . . . . 1 1 3 streamctrl_high 1 | . . . . . . . . . 1 . formatsys_high 3 | . . . . . . . . 1 2 . Relay Couplers Released 19 | . . . . 8 . . . 6 . 5 Machine Destruction 16 | . . . . 8 . . . 3 . 5 Programmers 3 | . . . . . . . . 3 . . Attached 5 | . . . . . . . . 2 1 2 Fabnet Peak Effective % . | . . . . . . . . . . . Robots Rewired . | . . . . . . . . . . . Allies Hacked . | . . . . . . . . . . . Hacks Repelled . | . . . . . . . . . . . Allies | -11 -10 -10 -8 -8 -8 -8 -7 -7 -7 -7 -------- Run | Yrd Mat Sub Mat Gar Mat Gar Fac Gar Fac Gar Total Allies 4 | . . . . . . . . 1 3 . Largest Group 1 | . . . . . . . . 1 1 . Highest-Rated Group 29 | . . . . . . . . 21 29 . Highest-Rated Ally 29 | . . . . . . . . 21 29 . Total Orders . | . . . . . . . . . . . Ally Attacks 19 | . . . . . . . . 7 12 . Total Damage 370 | . . . . . . . . 199 171 . Kills 5 | . . . . . . . . 2 3 . Allies Corrupted . | . . . . . . . . . . . Allies Melted . | . . . . . . . . . . . Intel | -11 -10 -10 -8 -8 -8 -8 -7 -7 -7 -7 ------- Run | Yrd Mat Sub Mat Gar Mat Gar Fac Gar Fac Gar Active Infowar (turns) . | . . . . . . . . . . . Robot Analysis Total . | . . . . . . . . . . . Derelict Logs Recovered 1 | . . 1 . . . . . . . . Drone Launches . | . . . . . . . . . . . Drone Recoveries . | . . . . . . . . . . . Exploration | -11 -10 -10 -8 -8 -8 -8 -7 -7 -7 -7 ------------- Run | Yrd Mat Sub Mat Gar Mat Gar Fac Gar Fac Gar Turns Passed 10991 | 148 1497 917 1966 1395 29 1690 379 1578 722 670 Spaces Moved 4704 | 69 685 482 939 511 12 596 198 638 321 253 Core 2 | 2 . . . . . . . . . . Treads 3377 | 67 685 232 357 511 12 596 198 638 81 . Legs 489 | . . . . . . . . . 240 249 Wheels 832 | . . 250 582 . . . . . . . Hover 4 | . . . . . . . . . . 4 Flight . | . . . . . . . . . . . Fastest Speed 50 | 50 160 110 103 240 240 240 160 160 120 105 Average Speed 188 | 156 160 138 163 240 240 240 171 212 186 188 Slowest Speed 400 | 160 160 240 400 240 240 240 240 240 240 190 Overloaded Moves . | . . . . . . . . . . . Propulsion Burnouts . | . . . . . . . . . . . Robots Hopped . | . . . . . . . . . . . Potential Cave-ins . | . . . . . . . . . . . Cave-ins Triggered . | . . . . . . . . . . . Exploration Rate (%) 41 | 4 99 36 55 62 4 72 5 75 10 37 Regions Visited 10 Branch Regions 1 Pre-discovered Areas 3 | . . . 3 . . . . . . . Known Exits Taken 5 | . . 1 1 . 1 . 1 . 1 . Unknown Exits Taken 2 | 1 1 . . . . . . . . . Scrap Searched 2 | . . 2 . . . . . . . . Spaces Dug 1 | . . . . . . . . . . 1 Terrain Destroyed 66 | . . . 52 3 . 1 2 1 . 7 Melee 1 | . . . . . . . . . . 1 Projectile 62 | . . . 52 . . 1 2 1 . 6 AOE 3 | . . . . 3 . . . . . . Terrain Rammed . | . . . . . . . . . . . Walls Destroyed . | . . . . . . . . . . . Machines Disabled . | . . . . . . . . . . . Actions | -11 -10 -10 -8 -8 -8 -8 -7 -7 -7 -7 --------- Run | Yrd Mat Sub Mat Gar Mat Gar Fac Gar Fac Gar Total 6126 | 90 1024 655 1271 610 12 722 225 750 401 366 Wait 720 | 1 284 109 203 19 . 24 5 11 35 29 Move 4696 | 68 684 481 938 510 12 595 198 637 320 253 Hop . | . . . . . . . . . . . Pick Up 75 | 5 6 3 21 8 . 4 2 14 7 5 Fast Attach 39 | 5 2 4 10 . . 3 1 8 2 4 Attach 42 | 1 . 3 5 6 . 1 1 10 7 8 Detach 14 | . 2 2 4 . . 1 . 2 1 2 Swap 41 | . 3 1 14 6 . 5 4 4 2 2 Drop 51 | . 4 2 16 4 . 9 7 3 1 5 Fire 387 | 10 39 50 60 43 . 64 7 49 24 41 Melee 13 | . . . . . . . . 6 . 7 Ram . | . . . . . . . . . . . Kick 1 | . . . . . . . . . 1 . Crush . | . . . . . . . . . . . Escape Stasis 46 | . . . . 14 . 16 . 6 . 10 Rewire 1 | . . . . . . . . . 1 . Trap . | . . . . . . . . . . . Miscellaneous . | . . . . . . . . . . . Route ------- -11/Scrapyard -10/Materials (discovered 6 exits: [*Mat x3] / *Min x2 / *Sub) -10/Subcaves (discovered 2 exits: *Mat x2) -8/Materials (discovered 2 exits: *Fac / Gar) -8/Garrison (discovered 3 exits: *Mat x3) -8/Materials -8/Garrison (discovered 3 exits: *Fac x3) -7/Factory (discovered 3 exits: Low x2 / Gar) -7/Garrison (discovered 3 exits: *Fac x3) -7/Factory -7/Garrison History --------- Turn | Location | Event 10 | -11/Scrapyard | Discovered new exit (range 16) 149 | -11/Scrapyard | Entered Materials 316 | -10/Materials | Build established: Mutant 472 | -10/Materials | Discovered new exit (range 16) 942 | -10/Materials | Discovered new exit (range 7) 1113 | -10/Materials | Discovered new exit (range 9) 1147 | -10/Materials | Discovered new exit (range 15) 1257 | -10/Materials | Discovered new exit (range 11) 1331 | -10/Materials | Identified exit to Mines 1393 | -10/Materials | Learned Storage terminal intel 1444 | -10/Materials | Loaded intel: 14 trap records 1475 | -10/Materials | Discovered new exit (range 7) 1521 | -10/Materials | Learned Materials trap positions 1623 | -10/Materials | Learned 2 Storage zone layouts 1646 | -10/Materials | Entered Subcaves 1647 | -10/Subcaves | Identified exit to Materials 1690 | -10/Subcaves | Learned Materials security intel 1806 | -10/Subcaves | Shifting Twisted Machinery released Battle Cannon 1827 | -10/Subcaves | Shifting Twisted Machinery released Sub. Laser 2220 | -10/Subcaves | Lost 4 parts (1p1n1u1w) 2282 | -10/Subcaves | Core integrity fell below 50% 2484 | -10/Subcaves | Visited 4L-MR0's lab 2522 | -10/Subcaves | Found Powered Cannon 2563 | -10/Subcaves | Entered Materials 2563 | -8/Materials | Evolved 4 slots: Propulsion x1, Utility x2, Weapon x1 2564 | -8/Materials | Loaded intel: 19 trap records 2878 | -8/Materials | Discovered new exit (range 4) 2981 | -8/Materials | Build established: Tank 3078 | -8/Materials | Identified exit to Garrison 3685 | -8/Materials | Learned location of 1 exit from Extension 3733 | -8/Materials | Learned location of 1 exit from Lower Caves 3804 | -8/Materials | Learned location of Lower Caves (-7) 3890 | -8/Materials | Learned location of Extension (-6) 4258 | -8/Materials | Garrison activated, responded to threat 4529 | -8/Materials | Entered Garrison 4575 | -8/Garrison | Triggered checkpoint 4661 | -8/Garrison | Installed Relay Interface Framework 4683 | -8/Garrison | Garrison Relay disabled 4771 | -8/Garrison | Build established: Scavenger-Tank 4921 | -8/Garrison | Triggered checkpoint 5044 | -8/Garrison | Discovered new exit (range 14) 5081 | -8/Garrison | Identified exit to Materials 5342 | -8/Garrison | Discovered exit to Materials (range 10) 5415 | -8/Garrison | Triggered checkpoint 5478 | -8/Garrison | Garrison Relay disabled 5643 | -8/Garrison | Triggered checkpoint 5751 | -8/Garrison | Discovered exit to Materials (range 33) 5751 | -8/Garrison | Discovered exit to Materials (range 34) 5751 | -8/Garrison | Discovered exit to Materials (range 71) 5924 | -8/Garrison | Entered Materials 5953 | -8/Materials | Identified exit to Garrison 5953 | -8/Materials | Entered Garrison 6185 | -8/Garrison | Triggered checkpoint 6371 | -8/Garrison | Triggered checkpoint 6653 | -8/Garrison | Triggered checkpoint 6775 | -8/Garrison | Discovered new exit (range 13) 6999 | -8/Garrison | Triggered checkpoint 7129 | -8/Garrison | Triggered checkpoint 7150 | -8/Garrison | Expanded RIF knowledge: Hotswap 7242 | -8/Garrison | Discovered new exit (range 10) 7261 | -8/Garrison | Identified exit to Factory 7459 | -8/Garrison | Triggered checkpoint 7624 | -8/Garrison | Discovered exit to Factory (range 9) 7643 | -8/Garrison | Entered Factory 7643 | -7/Factory | Evolved 2 slots: Propulsion x1, Utility x1 7644 | -7/Factory | Identified exit to Lower Caves 8022 | -7/Factory | Identified exit to Garrison 8022 | -7/Factory | Entered Garrison 8076 | -7/Garrison | Build established: Tank 8140 | -7/Garrison | Triggered checkpoint 8184 | -7/Garrison | Garrison Relay disabled 8238 | -7/Garrison | Triggered checkpoint 8324 | -7/Garrison | Lost 13 parts (2p4n5u2w) 8477 | -7/Garrison | Discovered new exit (range 11) 8532 | -7/Garrison | Triggered checkpoint 8658 | -7/Garrison | Build established: Bothacker-Tank 8752 | -7/Garrison | Triggered checkpoint 8855 | -7/Garrison | Discovered new exit (range 10) 9030 | -7/Garrison | Triggered checkpoint 9151 | -7/Garrison | Discovered new exit (range 13) 9347 | -7/Garrison | Core integrity fell below 50% 9406 | -7/Garrison | Triggered checkpoint 9456 | -7/Garrison | Expanded RIF knowledge: Program Shield 9600 | -7/Garrison | Entered Factory 9785 | -7/Factory | Lost 3 parts (1p1u1w) 9790 | -7/Factory | Garrison activated, responded to threat 10019 | -7/Factory | Garrison activated, responded to threat 10070 | -7/Factory | Build established: Bothacker-Gunner 10316 | -7/Factory | Identified exit to Garrison 10322 | -7/Factory | Entered Garrison 10370 | -7/Garrison | Triggered checkpoint 10476 | -7/Garrison | Attached Powered Cannon, gained temporary slot: Power 10582 | -7/Garrison | Garrison Relay disabled 10772 | -7/Garrison | Triggered checkpoint 10804 | -7/Garrison | Triggered checkpoint 10894 | -7/Garrison | Triggered checkpoint 10901 | -7/Garrison | Core integrity fell below 20% 10925 | -7/Garrison | Lost 3 parts (1p1n1w) 10966 | -7/Garrison | Expanded RIF knowledge: Watcher Feeds 10975 | -7/Garrison | Spotted B-75 Beast 10979 | -7/Garrison | Spotted B-75 Beast 10992 | -7/Garrison | Destroyed by B-75 Beast with Magnetic Acceleration Cannon Last Messages --------------- 10938_ System corrupted: Energy discharge (-41). 10958_ Triggered Alarm Trap. 10958_ An alarm sounds. Initiating installation procedure... 10966_ Expanded RIF knowledge: Watcher Feeds. 10969_ Imp. Carbon-fiber Leg destroyed. 10970_ Slug penetrates RIF Installer. 10970_ S-27 Virus destroyed. 10976_ System corrupted: Flexi-carbon Leg rejected. 10976_ S-27 Virus destroyed. 10976_ Switching to secondary target: B-75 Beast. 10976_ Slug penetrates Wall. 10978_ Cld. Pulse Rifle destroyed. 10980_ Identified Cld. Airjet. 10988_ B-75 Beast Rnf. Deuterium Engine severed. 10989_ Knocked back. 10990_ Triggered Alarm Trap. 10990_ An alarm sounds. Map ----- +----------------------------------------------------+ | ???? #??# #???############## !## | | ???? #?? #???????????????#""!""# | | ???? [%#??###???????????????####### | | ?????### ## ## **#??????????????????????????? | | ???????# ## ## [%###????????????????????????? | | ???????" [% #????????????????????????? | | ???????" #????????????????????????? | | ???????" #????????????????????????? | | ???????" #????????????????????????? | | ???????# ## ## ###????????????????????????? | | ???????# ## ## ############???????????????? | | ???????# #???????????????? | | ???????# #???????????????? | | ???????# #???????????????? | | ???????## ##""""############# #???????????????? | | ????????????????????????# #??# #???????????????? | | ????????????????????????# #??# #???????????????? | | ????????????????????????# #??# #???????????????? | | ??????????????????#?????# #??# #???????????????? | | ??????????????????# ??### ##?# #???????????????? | | ??????????????????# ##;; ;### ##"""##### #????? | | ??????????????????# # ???? | | ??????????????????# # ???? | | ??????????????????# ###BBBB#" ############????? | | ???????????????????????#BBBB## #???????????????? | | ???????????????????????#%@=#?# #???????????????? | | ???????????????????????#"% #?# * #???######??????? | | ???????????????????????#%["#?#=%=#### " ######## | | ???????????????????????# ="#?# [% | | ???????????????????????#"""#?# = [ % [ | | ???????????????????????#####?# ## = # ## ##???? | | ?????????????????????????????# ## #??????????? | | ?????????????????????????????# ######??????????? | | ?????????????????????????????# #???????????????? | | ?????????????????????????????# #???????????????? | | ?????????????????????????????# = ???????????????? | | ?????????????????????????????#[% ???????????????? | | ?????????????????????????????# = ???????????????? | | ?????????????????????????????# ##??????????????? | | ?????????????????????????????# #???????????????? | | ?????????????????????????????# #???????????????? | | ?????????????????????????????# #???????????????? | | ?????????????????????????????# ????????????????? | | ?????????????????????????????????????????????????? | | ?????????????????????????????????????????????????? | | ?????????????????????????????????????????????????? | | ?????????????????????????????????????????????????? | | ?????????????????????????????????????????????????? | | ?????????????????????????????????????????????????? | | ?????????????????????????????????????????????????? | +----------------------------------------------------+ Best States ------------- Heat Dissipation 67 Energy Generation 38 Energy Capacity 290 Matter Stores 300 Matter Capacity 300 Sight Range 16 Terrain Scan Density 10 Armor Coverage 375 Resistance: KI 30 Utility Shielding 66 Weapon Cycling 15 Evasion (%) 55 Core Analysis 6 Recoil Reduction 4 Relay Coupler Types 2 Relay Coupler Value 48 Item Schematics ----------------- Med. Treads | -7/Factory | Hacked Robot Schematics ------------------ None Fabricated ------------ Nothing Repaired ---------- Nothing Studied --------- None Alien Tech Used ----------------- None Achievements -------------- Hack The Planet Challenges ------------ None Game ------ Seed MicrowarpMappingBay Manual? 0 Play Time 00:58:44 Cumulative 134.7 hours Start 2026.03.14 @ 02:33:28 End 2026.03.14 @ 03:34:52 Sessions 1 Manual Loads 0 Difficulty Rogue Special Mode None Game No. 259 Rogue 259 Adventurer 0 Explorer 0 Win Type - Total 3 Types 2/0/0/1/0/0/0/0/0/0 Lore% 58 Gallery% 58 Achievement% 44 Wizard Run 0 Options --------- Layout 2 ASCII 0 Keyboard 1 Movement Numpad Keybinds 0 Fullscreen 1 Font 24/Smallcaps Map View 50x44 Zoom Use 0% Tactical HUD 1 Map Filters NONE Filters NONE Steam 1 RUN: 7ec579b7-2dd5-4281-b072-c905d3d43fdb